[Event "European Online Club-ch-B 2021"]
[Site "Online"]
[Date "2021.03.27"]
[Round "8.3"]
[White "Lecky, Juraj"]
[Black "Adrian, Leopold"]
[Result "0-1"]
[ECO "C16"]
[WhiteElo "2070"]
[BlackElo "2009"]
[Annotator "NA"]
[PlyCount "48"]
[EventDate "2021.03.27"]
[EventType "team-tourn"]
[EventCountry "NET"]
[SourceTitle "playchess.com"]
[Source "ChessBase"]
[SourceQuality "1"]
[TimeControl "900+5"]

1. e4 {[%emt 0:00:00]} e6 {[%emt 0:00:04]} 2. d4 {[%emt 0:00:03]} d5 {[%emt 0:00:01]} 3. Nc3 {[%emt 0:00:01]} Bb4 {[%emt 0:00:03]} 4. e5 {[%emt 0:00:03]} Ne7 {[%emt 0:00:04]} 5. a3 {[%emt 0:00:04]} Bxc3+ {[%emt 0:00:02]} 6. bxc3 {[%emt 0:00:00]} b6 {[%emt 0:00:01]} 7. Qg4 {[%emt 0:00:07]} Ng6 {[%emt 0:00:02]} 8. h4 {[%emt 0:00:36]} h5 {[%emt 0:00:03]} 9. Qg3 {[%emt 0:00:04]} Ba6 {[%emt 0:00:02]} 10. Bxa6 {[%emt 0:01:17]} Nxa6 {[%emt 0:00:03]} 11. Qd3 {[%emt 0:00:09]} Nb8 {[%emt 0:00:04]} 12. Nf3 {[%emt 0:00:09]} Qc8 {[%emt 0:00:20]} 13. Ng5 {[%emt 0:00:36]} Ne7 {[%emt 0:00:38]} 14. c4 {[%emt 0:02:14]} c6 {[%emt 0:02:58]} 15. Nf3 {[%emt 0:04:12]} Qa6 {[%emt 0:01:26]} 16. Nd2 {[%emt 0:00:14]} Nf5 {[%emt 0:00:26]} 17. Bb2 {[%emt 0:00:12]} Nd7 {[%emt 0:00:26]} 18. g3 {[%emt 0:00:13]} O-O-O {[%emt 0:01:09]} 19. a4 {[%emt 0:01:18]} dxc4 {[%emt 0:03:03]} 20. Nxc4 {[%emt 0:00:51]} Nc5 {[%emt 0:00:33]} 21. Qc3 {[%emt 0:01:56]} Nxd4 {[%emt 0:00:37]} 22. Ba3 {[%emt 0:01:58]} Nxc2+ {[%emt 0:03:24]} 23. Qxc2 {[%emt 0:00:16]} Nd3+ {[%emt 0:00:03]} 24. Kf1 {[%emt 0:00:21]} Nxe5 {[%emt 0:00:03]} 0-1

[Event "European Online Club-ch-B 2021"]
[Site "Online"]
[Date "2021.03.27"]
[Round "8.4"]
[White "Venard, Paul-Andre"]
[Black "Nikel, Rastislav"]
[Result "0-1"]
[ECO "A89"]
[WhiteElo "2048"]
[BlackElo "1984"]
[Annotator "NA"]
[PlyCount "78"]
[EventDate "2021.03.27"]
[EventType "team-tourn"]
[EventCountry "NET"]
[SourceTitle "playchess.com"]
[Source "ChessBase"]
[SourceQuality "1"]
[TimeControl "900+5"]

1. d4 {[%emt 0:00:00]} f5 {[%emt 0:00:03]} 2. Nf3 {[%emt 0:00:03]} g6 {[%emt 0:00:02]} 3. g3 {[%emt 0:00:02]} Bg7 {[%emt 0:00:02]} 4. Bg2 {[%emt 0:00:02]} d6 {[%emt 0:00:01]} 5. O-O {[%emt 0:00:02]} Nc6 {[%emt 0:00:02]} 6. d5 {[%emt 0:01:35]} Ne5 {[%emt 0:00:03]} 7. Nxe5 {[%emt 0:00:06]} dxe5 {[%emt 0:00:03]} 8. c4 {[%emt 0:00:40]} Nf6 {[%emt 0:00:04]} 9. Qb3 {[%emt 0:00:24]} O-O {[%emt 0:00:17]} 10. Nc3 {[%emt 0:00:32]} e4 {[%emt 0:00:06]} 11. Rd1 {[%emt 0:00:28]} h6 {[%emt 0:00:16]} 12. Be3 {[%emt 0:00:48]} Kh7 {[%emt 0:00:22]} 13. Bd4 {[%emt 0:00:07]} a6 {[%emt 0:01:02]} 14. c5 {[%emt 0:00:24]} Qe8 {[%emt 0:00:20]} 15. Rac1 {[%emt 0:01:15]} g5 {[%emt 0:01:05]} 16. d6 {[%emt 0:00:20]} e5 {[%emt 0:00:28]} 17. Be3 {[%emt 0:00:09]} f4 {[%emt 0:00:04]} 18. Bd2 {[%emt 0:00:42]} e3 {[%emt 0:00:14]} 19. Be1 {[%emt 0:00:43]} exf2+ {[%emt 0:01:17]} 20. Bxf2 {[%emt 0:00:02]} Qh5 {[%emt 0:00:03]} 21. Bf3 {[%emt 0:01:05]} g4 {[%emt 0:00:07]} 22. Bg2 {[%emt 0:01:15]} f3 {[%emt 0:00:48]} 23. Bf1 {[%emt 0:00:38]} c6 {[%emt 0:01:35]} 24. e4 {[%emt 0:02:09]} Rb8 {[%emt 0:00:12]} 25. Qc4 {[%emt 0:02:06]} Bd7 {[%emt 0:00:06]} 26. b4 {[%emt 0:00:33]} Qg6 {[%emt 0:00:17]} 27. a4 {[%emt 0:00:21]} h5 {[%emt 0:00:06]} 28. b5 {[%emt 0:00:43]} axb5 {[%emt 0:00:05]} 29. axb5 {[%emt 0:00:02]} h4 {[%emt 0:00:02]} 30. Rb1 {[%emt 0:00:07]} Nh5 {[%emt 0:00:10]} 31. Qb4 {[%emt 0:00:06]} hxg3 {[%emt 0:00:40]} 32. hxg3 {[%emt 0:00:03]} Rf7 {[%emt 0:00:25]} 33. bxc6 {[%emt 0:00:02]} Bxc6 {[%emt 0:00:03]} 34. Nd5 {[%emt 0:00:01]} Rbf8 {[%emt 0:00:46]} 35. Ne7 {[%emt 0:00:08]} Qh6 {[%emt 0:00:04]} 36. Nxc6 {[%emt 0:00:10]} Nxg3 {[%emt 0:00:16]} 37. Bxg3 {[%emt 0:00:02]} f2+ {[%emt 0:00:02]} 38. Bxf2 {[%emt 0:00:05]} Rxf2 {[%emt 0:00:04]} 39. Bg2 {[%emt 0:00:05]} g3 {[%emt 0:00:17]} 0-1

[Event "European Online Club-ch-B 2021"]
[Site "Online"]
[Date "2021.03.27"]
[Round "8.7"]
[White "Navara, David"]
[Black "Rasti, Arvin"]
[Result "1-0"]
[ECO "E90"]
[WhiteElo "2697"]
[BlackElo "2195"]
[Annotator "ChessBase"]
[PlyCount "67"]
[EventDate "2021.03.27"]
[EventType "team-tourn"]
[EventCountry "NET"]
[SourceTitle "playchess.com"]
[Source "ChessBase"]
[SourceQuality "1"]
[TimeControl "900+5"]

1. d4 {[%emt 0:00:00]} Nf6 {[%emt 0:00:06]} 2. c4 {[%emt 0:00:02]} c5 {[%emt 0:00:07]} 3. d5 {[%emt 0:00:02]} d6 {[%emt 0:00:03]} 4. Nc3 {[%emt 0:00:06]} g6 {[%emt 0:00:02]} 5. e4 {[%emt 0:00:05]} Bg7 {[%emt 0:00:04]} 6. Bd3 {[%emt 0:00:26]} O-O {[%emt 0:00:15]} 7. h3 {[%emt 0:00:03]} e6 {[%emt 0:00:02]} 8. Nf3 {[%emt 0:00:02]} Re8 {[%emt 0:00:05]} 9. O-O {[%emt 0:00:22]} Na6 {[%emt 0:00:03]} 10. Bg5 {[%emt 0:01:15]} h6 {[%emt 0:00:07]} 11. Be3 {[%emt 0:00:03]} Nc7 {[%emt 0:00:09]} 12. Qd2 {[%emt 0:01:30]} exd5 {[%emt 0:00:31]} 13. exd5 {[%emt 0:00:33]} Kh7 {[%emt 0:00:06]} 14. Rfe1 {[%emt 0:01:01]} Rb8 {[%emt 0:01:20]} 15. a4 {[%emt 0:01:27]} a6 {[%emt 0:00:27]} 16. a5 {[%emt 0:01:35]} b5 {[%emt 0:00:22]} 17. axb6 {[%emt 0:00:00]} Rxb6 {[%emt 0:00:02]} 18. Rab1 {[%emt 0:01:00]} Bd7 {[%emt 0:00:44]} 19. Bc2 {[%emt 0:00:33]} Qc8 {[%emt 0:00:33]} 20. Kh2 {[%emt 0:01:05]} Bf5 {[%emt 0:00:21]} 21. b3 {[%emt 0:00:04]} Ne4 {[%emt 0:00:30]} 22. Nxe4 {[%emt 0:00:23]} Bxe4 {[%emt 0:00:02]} 23. Bxc5 {[%emt 0:00:39]} Bxc2 {[%emt 0:00:38]} 24. Bxb6 {[%emt 0:00:05]} Bxb1 {[%emt 0:00:16]} 25. Rxb1 {[%emt 0:00:00]} Qf5 {[%emt 0:01:10]} 26. Re1 {[%emt 0:00:03]} Rxe1 {[%emt 0:00:05]} 27. Qxe1 {[%emt 0:00:00]} Na8 {[%emt 0:00:20]} 28. Ba5 {[%emt 0:00:10]} Qd7 {[%emt 0:01:18]} 29. Qe3 {[%emt 0:00:22]} g5 {[%emt 0:00:14]} 30. Nd4 {[%emt 0:00:43]} Nc7 {[%emt 0:01:00]} 31. Qe4+ {[%emt 0:00:18]} Kg8 {[%emt 0:00:07]} 32. Qf5 {[%emt 0:00:34]} Be5+ {[%emt 0:00:33]} 33. g3 {[%emt 0:00:09]} Qe8 {[%emt 0:01:34]} 34. Nc6 {[%emt 0:00:04]} 1-0

[Event "European Online Club-ch-B 2021"]
[Site "Online"]
[Date "2021.03.27"]
[Round "8.8"]
[White "Wengholm, Anders"]
[Black "Ragger, Markus"]
[Result "0-1"]
[ECO "A34"]
[WhiteElo "2198"]
[BlackElo "2680"]
[Annotator "ChessBase"]
[PlyCount "68"]
[EventDate "2021.03.27"]
[EventType "team-tourn"]
[EventCountry "NET"]
[SourceTitle "playchess.com"]
[Source "ChessBase"]
[SourceQuality "1"]
[TimeControl "900+5"]

1. Nf3 {[%emt 0:00:00]} c5 {[%emt 0:00:02]} 2. c4 {[%emt 0:00:03]} Nf6 {[%emt 0:00:02]} 3. Nc3 {[%emt 0:00:04]} d5 {[%emt 0:00:01]} 4. cxd5 {[%emt 0:00:02]} Nxd5 {[%emt 0:00:02]} 5. d4 {[%emt 0:00:01]} Nxc3 {[%emt 0:00:06]} 6. bxc3 {[%emt 0:00:03]} g6 {[%emt 0:00:01]} 7. e3 {[%emt 0:01:09]} Bg7 {[%emt 0:01:04]} 8. Bb5+ {[%emt 0:00:06]} Bd7 {[%emt 0:00:10]} 9. Bd3 {[%emt 0:00:02]} Qa5 {[%emt 0:00:29]} 10. Bd2 {[%emt 0:01:50]} O-O {[%emt 0:00:04]} 11. O-O {[%emt 0:00:14]} Ba4 {[%emt 0:00:05]} 12. Qe2 {[%emt 0:00:06]} Nd7 {[%emt 0:01:01]} 13. Rab1 {[%emt 0:00:48]} Qc7 {[%emt 0:00:13]} 14. h4 {[%emt 0:00:16]} Rac8 {[%emt 0:00:35]} 15. Rbc1 {[%emt 0:00:15]} e5 {[%emt 0:00:47]} 16. d5 {[%emt 0:00:31]} c4 {[%emt 0:00:39]} 17. Bb1 {[%emt 0:00:04]} e4 {[%emt 0:01:01]} 18. Bxe4 {[%emt 0:00:13]} Nf6 {[%emt 0:00:03]} 19. Bb1 {[%emt 0:00:03]} Rfe8 {[%emt 0:00:44]} 20. Nd4 {[%emt 0:02:08]} Qe5 {[%emt 0:01:11]} 21. Qf3 {[%emt 0:01:04]} Qxd5 {[%emt 0:00:03]} 22. Qxd5 {[%emt 0:00:35]} Nxd5 {[%emt 0:00:01]} 23. h5 {[%emt 0:00:04]} Nf6 {[%emt 0:00:31]} 24. hxg6 {[%emt 0:00:03]} hxg6 {[%emt 0:00:01]} 25. f3 {[%emt 0:00:29]} Nd7 {[%emt 0:01:31]} 26. Be4 {[%emt 0:06:02]} Rxe4 {[%emt 0:02:42]} 27. fxe4 {[%emt 0:00:03]} Nc5 {[%emt 0:00:02]} 28. Be1 {[%emt 0:00:38]} Nxe4 {[%emt 0:00:15]} 29. Rb1 {[%emt 0:00:13]} b6 {[%emt 0:00:13]} 30. Rc1 {[%emt 0:00:08]} Re8 {[%emt 0:00:08]} 31. Bh4 {[%emt 0:00:06]} Bh6 {[%emt 0:00:32]} 32. Rfe1 {[%emt 0:00:03]} Nc5 {[%emt 0:00:43]} 33. Re2 {[%emt 0:00:07]} Bxe3+ {[%emt 0:00:09]} 34. Kh1 {[%emt 0:00:05]} Bxc1 {[%emt 0:00:02]} 0-1

[Event "European Online Club-ch-B 2021"]
[Site "Online"]
[Date "2021.03.27"]
[Round "8.9"]
[White "Svane, Rasmus"]
[Black "Demidov, Mikhail"]
[Result "1/2-1/2"]
[ECO "B07"]
[WhiteElo "2613"]
[BlackElo "2523"]
[Annotator "ChessBase"]
[PlyCount "66"]
[EventDate "2021.03.27"]
[EventType "team-tourn"]
[EventCountry "NET"]
[SourceTitle "playchess.com"]
[Source "ChessBase"]
[SourceQuality "1"]
[TimeControl "900+5"]

1. Nf3 {[%emt 0:00:00]} g6 {[%emt 0:00:03]} 2. e4 {[%emt 0:00:05]} Bg7 {[%emt 0:00:02]} 3. d4 {[%emt 0:00:01]} d6 {[%emt 0:00:04]} 4. Bd3 {[%emt 0:00:03]} Nf6 {[%emt 0:00:58]} 5. O-O {[%emt 0:00:05]} O-O {[%emt 0:00:02]} 6. h3 {[%emt 0:00:05]} Nc6 {[%emt 0:00:34]} 7. c3 {[%emt 0:00:02]} e5 {[%emt 0:00:03]} 8. Re1 {[%emt 0:00:01]} Re8 {[%emt 0:00:07]} 9. Nbd2 {[%emt 0:00:33]} d5 {[%emt 0:02:41]} 10. dxe5 {[%emt 0:00:06]} Nxe4 {[%emt 0:00:18]} 11. Nxe4 {[%emt 0:00:05]} dxe4 {[%emt 0:00:04]} 12. Bxe4 {[%emt 0:00:21]} Qxd1 {[%emt 0:00:05]} 13. Rxd1 {[%emt 0:00:00]} Nxe5 {[%emt 0:00:08]} 14. Nxe5 {[%emt 0:00:44]} Bxe5 {[%emt 0:00:04]} 15. Be3 {[%emt 0:00:42]} c6 {[%emt 0:00:11]} 16. Bf3 {[%emt 0:00:56]} Be6 {[%emt 0:00:13]} 17. Rd2 {[%emt 0:00:22]} Bc7 {[%emt 0:00:17]} 18. a3 {[%emt 0:03:30]} a6 {[%emt 0:00:10]} 19. Bd4 {[%emt 0:00:31]} Rad8 {[%emt 0:00:09]} 20. Re2 {[%emt 0:00:16]} Bc4 {[%emt 0:00:15]} 21. Ree1 {[%emt 0:00:11]} f5 {[%emt 0:01:05]} 22. g3 {[%emt 0:01:07]} Kf7 {[%emt 0:00:07]} 23. Kg2 {[%emt 0:00:35]} h5 {[%emt 0:00:24]} 24. Rad1 {[%emt 0:00:26]} Bb3 {[%emt 0:00:10]} 25. Rxe8 {[%emt 0:00:19]} Rxe8 {[%emt 0:00:16]} 26. Rd2 {[%emt 0:00:06]} Rd8 {[%emt 0:00:05]} 27. Re2 {[%emt 0:00:36]} Bc4 {[%emt 0:00:14]} 28. Re1 {[%emt 0:00:03]} Re8 {[%emt 0:00:36]} 29. Rd1 {[%emt 0:00:04]} Bb3 {[%emt 0:00:44]} 30. Rd2 {[%emt 0:00:02]} Rd8 {[%emt 0:00:02]} 31. Re2 {[%emt 0:00:11]} Bc4 {[%emt 0:00:04]} 32. Re1 {[%emt 0:00:02]} Re8 {[%emt 0:00:02]} 33. Rd1 {[%emt 0:00:02]} Bb3 {[%emt 0:00:05]} 1/2-1/2

[Event "European Online Club-ch-B 2021"]
[Site "Online"]
[Date "2021.03.27"]
[Round "8.10"]
[White "Baltag, Iulian"]
[Black "Engel, Luis"]
[Result "1/2-1/2"]
[ECO "E46"]
[WhiteElo "2393"]
[BlackElo "2553"]
[Annotator "ChessBase"]
[PlyCount "65"]
[EventDate "2021.03.27"]
[EventType "team-tourn"]
[EventCountry "NET"]
[SourceTitle "playchess.com"]
[Source "ChessBase"]
[SourceQuality "1"]
[TimeControl "900+5"]

1. d4 {[%emt 0:00:00]} Nf6 {[%emt 0:00:02]} 2. c4 {[%emt 0:00:10]} e6 {[%emt 0:00:02]} 3. Nc3 {[%emt 0:00:03]} Bb4 {[%emt 0:00:02]} 4. e3 {[%emt 0:00:01]} O-O {[%emt 0:00:07]} 5. Nge2 {[%emt 0:00:02]} c6 {[%emt 0:00:09]} 6. a3 {[%emt 0:00:04]} Ba5 {[%emt 0:00:01]} 7. b4 {[%emt 0:00:06]} Bc7 {[%emt 0:00:02]} 8. Ng3 {[%emt 0:00:08]} d5 {[%emt 0:00:02]} 9. Bb2 {[%emt 0:00:04]} Nbd7 {[%emt 0:00:23]} 10. Be2 {[%emt 0:00:04]} dxc4 {[%emt 0:00:22]} 11. Bxc4 {[%emt 0:00:06]} e5 {[%emt 0:00:19]} 12. dxe5 {[%emt 0:00:05]} Nxe5 {[%emt 0:00:05]} 13. Be2 {[%emt 0:00:02]} Be6 {[%emt 0:00:52]} 14. Nce4 {[%emt 0:00:17]} Nxe4 {[%emt 0:00:21]} 15. Nxe4 {[%emt 0:00:04]} Qh4 {[%emt 0:02:20]} 16. Nc5 {[%emt 0:02:19]} Rad8 {[%emt 0:00:23]} 17. Qc2 {[%emt 0:00:04]} b6 {[%emt 0:02:22]} 18. Nxe6 {[%emt 0:01:52]} fxe6 {[%emt 0:00:00]} 19. g3 {[%emt 0:00:04]} Qh3 {[%emt 0:00:08]} 20. Qe4 {[%emt 0:00:07]} Qf5 {[%emt 0:01:11]} 21. Qxf5 {[%emt 0:00:11]} Rxf5 {[%emt 0:00:41]} 22. Rc1 {[%emt 0:00:15]} c5 {[%emt 0:00:37]} 23. bxc5 {[%emt 0:00:57]} bxc5 {[%emt 0:00:04]} 24. Bxe5 {[%emt 0:00:14]} Rxe5 {[%emt 0:00:36]} 25. O-O {[%emt 0:00:11]} Kf7 {[%emt 0:00:59]} 26. Bc4 {[%emt 0:00:06]} Ke7 {[%emt 0:00:43]} 27. Rfd1 {[%emt 0:00:03]} Rxd1+ {[%emt 0:00:37]} 28. Rxd1 {[%emt 0:00:02]} Rf5 {[%emt 0:00:06]} 29. f4 {[%emt 0:00:11]} Rf8 {[%emt 0:00:25]} 30. Kf2 {[%emt 0:00:20]} g5 {[%emt 0:00:30]} 31. Ke2 {[%emt 0:00:02]} gxf4 {[%emt 0:00:09]} 32. exf4 {[%emt 0:00:12]} e5 {[%emt 0:00:17]} 33. Bb5 {[%emt 0:00:10]} 1/2-1/2

[Event "European Online Club-ch-B 2021"]
[Site "Online"]
[Date "2021.03.27"]
[Round "8.11"]
[White "Heinemann, Thies"]
[Black "Andriasyan, Siranush"]
[Result "1-0"]
[ECO "C65"]
[WhiteElo "2502"]
[BlackElo "2298"]
[Annotator "ChessBase"]
[PlyCount "153"]
[EventDate "2021.03.27"]
[EventType "team-tourn"]
[EventCountry "NET"]
[SourceTitle "playchess.com"]
[Source "ChessBase"]
[SourceQuality "1"]
[TimeControl "900+5"]

1. e4 {[%emt 0:00:00]} e5 {[%emt 0:00:03]} 2. Nf3 {[%emt 0:00:03]} Nc6 {[%emt 0:00:02]} 3. Bb5 {[%emt 0:00:02]} Nf6 {[%emt 0:00:03]} 4. Qe2 {[%emt 0:00:03]} Bc5 {[%emt 0:00:49]} 5. c3 {[%emt 0:00:04]} O-O {[%emt 0:00:57]} 6. d3 {[%emt 0:00:24]} d6 {[%emt 0:00:10]} 7. Nbd2 {[%emt 0:00:10]} Ne7 {[%emt 0:00:55]} 8. O-O {[%emt 0:01:25]} Ng6 {[%emt 0:00:26]} 9. d4 {[%emt 0:01:05]} Bb6 {[%emt 0:00:19]} 10. Rd1 {[%emt 0:01:21]} c6 {[%emt 0:00:28]} 11. Ba4 {[%emt 0:00:34]} Nf4 {[%emt 0:01:21]} 12. Qf1 {[%emt 0:00:11]} Qe7 {[%emt 0:01:31]} 13. Bc2 {[%emt 0:00:31]} Bg4 {[%emt 0:00:27]} 14. h3 {[%emt 0:00:44]} Bh5 {[%emt 0:00:32]} 15. g3 {[%emt 0:00:33]} Bxf3 {[%emt 0:01:06]} 16. Nxf3 {[%emt 0:00:09]} Ng6 {[%emt 0:00:05]} 17. dxe5 {[%emt 0:00:39]} dxe5 {[%emt 0:01:13]} 18. Qe2 {[%emt 0:00:11]} Rfd8 {[%emt 0:00:11]} 19. Be3 {[%emt 0:00:30]} Bxe3 {[%emt 0:00:24]} 20. Qxe3 {[%emt 0:00:03]} b6 {[%emt 0:00:06]} 21. Ba4 {[%emt 0:00:15]} Qe6 {[%emt 0:00:15]} 22. Kg2 {[%emt 0:01:02]} h6 {[%emt 0:00:08]} 23. Bb3 {[%emt 0:00:11]} Qe7 {[%emt 0:00:05]} 24. Qe2 {[%emt 0:00:53]} Rxd1 {[%emt 0:00:54]} 25. Rxd1 {[%emt 0:00:04]} Rd8 {[%emt 0:00:02]} 26. Rxd8+ {[%emt 0:01:05]} Qxd8 {[%emt 0:00:00]} 27. Qc4 {[%emt 0:00:06]} Qd7 {[%emt 0:00:07]} 28. a4 {[%emt 0:00:07]} b5 {[%emt 0:00:15]} 29. Qe2 {[%emt 0:00:46]} a6 {[%emt 0:01:08]} 30. Nd2 {[%emt 0:00:50]} c5 {[%emt 0:00:54]} 31. axb5 {[%emt 0:00:04]} axb5 {[%emt 0:00:00]} 32. Nf1 {[%emt 0:00:14]} c4 {[%emt 0:00:29]} 33. Bc2 {[%emt 0:00:07]} Qc6 {[%emt 0:00:10]} 34. Qf3 {[%emt 0:00:48]} Nf8 {[%emt 0:00:25]} 35. Ne3 {[%emt 0:00:10]} Ne6 {[%emt 0:00:05]} 36. Nd5 {[%emt 0:00:23]} Qd6 {[%emt 0:01:13]} 37. Nxf6+ {[%emt 0:00:19]} gxf6 {[%emt 0:00:00]} 38. Qe3 {[%emt 0:00:05]} Kg7 {[%emt 0:00:04]} 39. h4 {[%emt 0:00:04]} Qc5 {[%emt 0:00:17]} 40. Qe2 {[%emt 0:00:49]} b4 {[%emt 0:00:05]} 41. Ba4 {[%emt 0:00:24]} bxc3 {[%emt 0:00:19]} 42. bxc3 {[%emt 0:00:04]} Kh7 {[%emt 0:00:09]} 43. Be8 {[%emt 0:00:12]} Kg7 {[%emt 0:00:04]} 44. Qh5 {[%emt 0:00:10]} Qc7 {[%emt 0:00:10]} 45. Qg4+ {[%emt 0:00:33]} Kf8 {[%emt 0:00:02]} 46. Bb5 {[%emt 0:00:07]} Ke7 {[%emt 0:00:08]} 47. Qe2 {[%emt 0:00:05]} Qc5 {[%emt 0:00:09]} 48. Qxc4 {[%emt 0:00:04]} Qxc4 {[%emt 0:00:04]} 49. Bxc4 {[%emt 0:00:02]} Nc5 {[%emt 0:00:02]} 50. f3 {[%emt 0:00:04]} Na4 {[%emt 0:00:03]} 51. Kh3 {[%emt 0:00:01]} Nxc3 {[%emt 0:00:05]} 52. Kg4 {[%emt 0:00:03]} Kf8 {[%emt 0:00:02]} 53. Kh5 {[%emt 0:00:09]} Kg7 {[%emt 0:00:01]} 54. Kg4 {[%emt 0:00:16]} Nd1 {[%emt 0:00:02]} 55. Kh3 {[%emt 0:00:03]} Ne3 {[%emt 0:00:08]} 56. Bb3 {[%emt 0:00:02]} Nf1 {[%emt 0:00:03]} 57. Kg2 {[%emt 0:00:03]} Nd2 {[%emt 0:00:02]} 58. Ba2 {[%emt 0:00:02]} f5 {[%emt 0:00:20]} 59. exf5 {[%emt 0:00:11]} e4 {[%emt 0:00:05]} 60. fxe4 {[%emt 0:00:06]} Nxe4 {[%emt 0:00:00]} 61. Kf3 {[%emt 0:00:02]} Nc3 {[%emt 0:00:09]} 62. Bc4 {[%emt 0:00:07]} Na4 {[%emt 0:00:06]} 63. Kf4 {[%emt 0:00:04]} Nb6 {[%emt 0:00:04]} 64. Bb3 {[%emt 0:00:03]} Nd7 {[%emt 0:00:04]} 65. g4 {[%emt 0:00:04]} f6 {[%emt 0:00:05]} 66. Be6 {[%emt 0:00:06]} Nc5 {[%emt 0:00:05]} 67. Bc4 {[%emt 0:00:06]} Nd7 {[%emt 0:00:03]} 68. Bb5 {[%emt 0:00:02]} Nb6 {[%emt 0:00:07]} 69. Ke4 {[%emt 0:00:04]} Nc8 {[%emt 0:00:07]} 70. Kd5 {[%emt 0:00:03]} Ne7+ {[%emt 0:00:07]} 71. Ke6 {[%emt 0:00:03]} Ng8 {[%emt 0:00:09]} 72. Be8 {[%emt 0:00:09]} h5 {[%emt 0:00:07]} 73. Bxh5 {[%emt 0:00:03]} Nh6 {[%emt 0:00:01]} 74. g5 {[%emt 0:00:06]} Ng8 {[%emt 0:00:02]} 75. Bf7 {[%emt 0:00:02]} fxg5 {[%emt 0:00:06]} 76. hxg5 {[%emt 0:00:05]} Kh8 {[%emt 0:00:06]} 77. Bxg8 {[%emt 0:00:03]} 1-0

[Event "European Online Club-ch-B 2021"]
[Site "Online"]
[Date "2021.03.27"]
[Round "8.12"]
[White "Pillard, Valentin"]
[Black "Kramer, Julian"]
[Result "0-1"]
[ECO "B53"]
[WhiteElo "2103"]
[BlackElo "2419"]
[Annotator "NA"]
[PlyCount "96"]
[EventDate "2021.03.27"]
[EventType "team-tourn"]
[EventCountry "NET"]
[SourceTitle "playchess.com"]
[Source "ChessBase"]
[SourceQuality "1"]
[TimeControl "900+5"]

1. e4 {[%emt 0:00:00]} c5 {[%emt 0:00:07]} 2. Nf3 {[%emt 0:00:03]} d6 {[%emt 0:00:02]} 3. d4 {[%emt 0:00:00]} cxd4 {[%emt 0:00:00]} 4. Qxd4 {[%emt 0:00:02]} Nc6 {[%emt 0:00:02]} 5. Bb5 {[%emt 0:00:02]} a6 {[%emt 0:00:01]} 6. Bxc6+ {[%emt 0:00:17]} bxc6 {[%emt 0:00:00]} 7. c4 {[%emt 0:00:54]} e5 {[%emt 0:00:04]} 8. Qd3 {[%emt 0:00:07]} Ne7 {[%emt 0:00:04]} 9. O-O {[%emt 0:00:22]} Ng6 {[%emt 0:00:04]} 10. Nc3 {[%emt 0:02:12]} Be7 {[%emt 0:00:34]} 11. Rd1 {[%emt 0:01:32]} O-O {[%emt 0:01:12]} 12. b3 {[%emt 0:00:03]} f5 {[%emt 0:01:36]} 13. Ba3 {[%emt 0:00:03]} Qa5 {[%emt 0:01:08]} 14. Bxd6 {[%emt 0:00:21]} Bxd6 {[%emt 0:00:49]} 15. Qxd6 {[%emt 0:00:31]} Qxc3 {[%emt 0:00:05]} 16. Qxc6 {[%emt 0:02:03]} Ra7 {[%emt 0:00:30]} 17. Ng5 {[%emt 0:00:30]} fxe4 {[%emt 0:01:09]} 18. Nxe4 {[%emt 0:02:47]} Qb2 {[%emt 0:00:05]} 19. Qd5+ {[%emt 0:01:22]} Kh8 {[%emt 0:00:21]} 20. Qc5 {[%emt 0:00:01]} Raf7 {[%emt 0:01:24]} 21. Rab1 {[%emt 0:01:26]} Qxa2 {[%emt 0:00:19]} 22. Ra1 {[%emt 0:00:02]} Qc2 {[%emt 0:00:14]} 23. f3 {[%emt 0:00:53]} Re7 {[%emt 0:02:21]} 24. Rd6 {[%emt 0:00:22]} Ree8 {[%emt 0:01:00]} 25. Qb6 {[%emt 0:00:27]} Qb2 {[%emt 0:00:44]} 26. Rad1 {[%emt 0:00:15]} Bf5 {[%emt 0:00:30]} 27. R6d2 {[%emt 0:00:04]} Qa3 {[%emt 0:00:02]} 28. Nd6 {[%emt 0:00:02]} Rb8 {[%emt 0:00:11]} 29. Qc7 {[%emt 0:00:07]} Be6 {[%emt 0:00:09]} 30. Ne4 {[%emt 0:00:30]} Qxb3 {[%emt 0:00:27]} 31. c5 {[%emt 0:00:02]} Qb7 {[%emt 0:00:12]} 32. Qd6 {[%emt 0:00:04]} Bb3 {[%emt 0:00:10]} 33. Rb1 {[%emt 0:00:04]} a5 {[%emt 0:00:16]} 34. c6 {[%emt 0:00:07]} Qb6+ {[%emt 0:00:04]} 35. Kh1 {[%emt 0:00:11]} Rbd8 {[%emt 0:00:11]} 36. Qa3 {[%emt 0:00:05]} a4 {[%emt 0:00:10]} 37. Rxd8 {[%emt 0:00:04]} Rxd8 {[%emt 0:00:04]} 38. Qc1 {[%emt 0:00:04]} Rc8 {[%emt 0:00:09]} 39. Qg5 {[%emt 0:00:08]} Qxc6 {[%emt 0:00:06]} 40. h4 {[%emt 0:00:01]} h6 {[%emt 0:00:16]} 41. Qg4 {[%emt 0:00:05]} Bd5 {[%emt 0:00:12]} 42. Ng3 {[%emt 0:00:08]} Qe6 {[%emt 0:00:08]} 43. Nf5 {[%emt 0:00:06]} Rf8 {[%emt 0:00:06]} 44. h5 {[%emt 0:00:01]} Qxf5 {[%emt 0:00:04]} 45. Qxf5 {[%emt 0:00:08]} Rxf5 {[%emt 0:00:00]} 46. hxg6 {[%emt 0:00:01]} a3 {[%emt 0:00:04]} 47. Rb5 {[%emt 0:00:09]} Bg8 {[%emt 0:00:04]} 48. Ra5 {[%emt 0:00:01]} a2 {[%emt 0:00:02]} 0-1